bitfinex/quotes_SOLUSD_20241208
["timestamp","ask_amount","ask_price","bid_price","bid_amount"]
[1733625137984,1.5622,241.25,241.13,12.37894967]
[1733625138214,12.37894967,241.21,241.13,12.37894967]
[1733625138586,12.37894967,241.2,241.14,0.12549]
[1733625139195,12.37894967,241.2,241.12,0.25098]
[1733625139393,12.37894967,241.2,241.13,0.12549]
[1733625139916,12.37894967,241.18,241.13,0.12549]
[1733625140618,12.37894967,241.2,241.14,0.12549]
[1733625146196,12.37894967,241.24,241.17,12.37894967]
[1733625146395,12.37894967,241.21,241.16,4.137]
[1733625146627,12.37894967,241.21,241.15,0.25098]
[1733625147126,23.776884,241.28,241.15,12.62992967]
[1733625147427,12.37894967,241.23,241.15,12.62992967]
[1733625147721,12.37894967,241.24,241.18,0.25098]
[1733625148399,12.37894967,241.23,241.18,0.25098]
[1733625149305,12.37894967,241.25,241.18,0.25098]
[1733625149505,12.37894967,241.24,241.18,0.25098]
[1733625151406,12.37894967,241.22,241.18,0.12549]
[1733625151611,12.37894967,241.2,241.18,0.12549]
[1733625152227,12.37894967,241.22,241.18,0.12549]
[1733625152595,7.92262083,241.22,241.18,0.12549]
[1733625156104,7.92262083,241.22,241.15,0.25098]
[1733625156423,7.92262083,241.2,241.14,1.5977]
[1733625158029,7.92262083,241.18,241.14,21.5977]
[1733625158708,0.12549,241.29,241.09,5.6716]
[1733625158709,7.92262083,241.16,241.09,5.6716]
[1733625159111,7.92262083,241.16,241.1,0.12549]
[1733625159537,7.92262083,241.16,241.09,5.6716]
[1733625159904,7.92262083,241.16,241.1,0.12549]
[1733625160411,7.92262083,241.14,241.1,0.12549]
[1733625162397,7.92262083,241.14,241.07,0.12549]
[1733625162611,7.92262083,241.12,241.03,1.5346]
[1733625163033,7.92262083,241.12,241.03,9.45722083]
[1733625163533,7.92262083,241.1,241.04,0.12549]
[1733625163896,7.92262083,241.1,241.03,1.5346]
[1733625167944,7.92262083,241.1,240.98,12.01214598]
[1733625168245,7.92262083,241.1,241.02,0.25098]
[1733625169731,7.92262083,241.08,241.02,0.25098]
[1733625170252,20.0,241.16,241.02,0.12549]
[1733625170422,7.92262083,241.08,241.02,0.12549]
[1733625171731,7.92262083,241.09,241.02,8.04811083]
[1733625176944,7.92262083,241.1,241.02,8.04811083]
[1733625178659,7.92262083,241.1,241.03,7.92262083]
[1733625179843,10.3652,241.19,241.05,7.92262083]
[1733625180056,10.3652,241.19,241.06,7.92262083]
[1733625180057,7.92262083,241.14,241.06,7.92262083]
[1733625180240,7.92262083,241.13,241.05,7.92262083]
[1733625181754,7.92262083,241.12,241.05,7.92262083]
[1733625183067,7.92262083,241.12,241.02,0.37647]
[1733625183356,20.7271,241.23,241.02,0.37647]
[1733625183357,1.5508,241.21,241.11,7.92262083]
[1733625183564,7.92262083,241.18,241.11,7.92262083]
[1733625185754,7.92262083,241.16,241.08,8.04811083]
[1733625185957,7.92262083,241.15,241.08,8.04811083]
[1733625186466,23.776884,241.22,241.09,7.92262083]
[1733625186762,7.92262083,241.17,241.1,7.92262083]
[1733625186942,23.776884,241.22,241.1,7.92262083]
[1733625187146,23.776884,241.23,241.12,7.92262083]
[1733625187338,7.92262083,241.18,241.1,7.92262083]
[1733625187536,7.92262083,241.17,241.1,7.92262083]
[1733625187854,7.92262083,241.18,241.1,7.92262083]
[1733625189467,7.92262083,241.17,241.1,7.92262083]
[1733625190748,7.92262083,241.16,241.1,0.12549]
[1733625190940,7.92262083,241.16,241.08,4.38798]
[1733625190941,7.92262083,241.16,241.08,4.137]
[1733625191147,7.92262083,241.13,241.05,7.92262083]
[1733625191369,7.92262083,241.13,241.06,0.12549]
[1733625192361,7.92262083,241.11,241.05,20.0]
[1733625192658,7.92262083,241.1,241.04,0.12549]
[1733625192861,7.92262083,241.1,241.03,9.43992083]
[1733625193166,7.92262083,241.1,241.04,0.12549]
[1733625193867,7.92262083,241.08,241.03,1.5173]
[1733625194365,7.92262083,241.07,241.03,1.5173]
[1733625195243,7.92262083,241.06,240.99,0.12549]
[1733625195446,7.92262083,241.06,240.99,8.04811083]
[1733625195769,7.92262083,241.06,240.98,1.6504]
[1733625195969,20.0,241.14,241.01,7.92262083]
[1733625196167,20.0,241.14,240.98,1.6504]
[1733625196168,7.92262083,241.1,241.02,8.04811083]
[1733625196369,7.92262083,241.1,241.02,0.12549]
[1733625196680,7.92262083,241.1,241.02,8.04811083]
[1733625196976,7.92262083,241.1,241.0,20.12549]
[1733625197151,7.92262083,241.1,241.02,7.92262083]
[1733625198376,7.92262083,241.11,241.03,8.04811083]
[1733625198551,31.69048332,241.2,241.07,7.92262083]
[1733625198748,7.92262083,241.16,241.09,7.92262083]
[1733625198958,7.92262083,241.13,241.07,1.6504]
[1733625201653,31.69048332,241.2,241.07,1.6504]
[1733625201654,7.92262083,241.12,241.07,1.6504]
[1733625201861,7.92262083,241.1,241.02,20.12549]
[1733625202173,7.92262083,241.1,241.04,20.0]
[1733625202554,7.92262083,241.1,241.0,4.26249]
[1733625202756,7.92262083,241.08,241.02,0.12549]
[1733625203073,7.92262083,241.08,241.02,0.25098]
[1733625207476,7.92262083,241.08,241.01,12.05962083]
[1733625207776,7.92262083,241.09,241.01,12.05962083]
[1733625207974,7.92262083,241.1,241.02,7.92262083]
[1733625209393,7.92262083,241.06,241.0,4.137]
[1733625209570,7.92262083,241.04,241.0,4.137]
[1733625211291,7.92262083,241.04,240.95,10.3752]
[1733625211292,25.340184,241.01,240.9,38.34509166]
[1733625211502,7.92262083,240.93,240.87,102.25357777]
[1733625211669,25.340184,241.01,240.85,2.1176792]
[1733625211670,7.92262083,240.91,240.85,2.1176792]
[1733625211873,7.92262083,240.93,240.85,10.04030003]
[1733625216499,7.92262083,240.93,240.85,2.1176792]
[1733625217109,7.92262083,240.9,240.85,0.4723792]
[1733625217407,31.69048332,240.96,240.85,0.4723792]
[1733625217408,7.92262083,240.89,240.85,0.4723792]
[1733625219804,7.92262083,240.9,240.85,0.4723792]
[1733625220015,43.776884,240.97,240.85,0.4723792]
[1733625220173,1.5633,241.01,240.87,7.92262083]
[1733625220604,7.92262083,240.94,240.87,7.92262083]
[1733625220981,7.92262083,240.95,240.87,7.92262083]
[1733625221184,7.92262083,240.96,240.88,8.04811083]
[1733625222511,7.92262083,240.96,240.89,7.92262083]
[1733625223011,1.5633,241.01,240.89,7.92262083]
[1733625223012,7.92262083,240.97,240.89,7.92262083]
[1733625225205,7.92262083,240.97,240.91,0.12549]
[1733625225395,7.92262083,240.98,240.91,0.25098]
[1733625226919,7.92262083,240.99,240.92,0.12549]
[1733625231812,23.776884,241.05,240.93,7.92262083]
[1733625231985,7.92262083,241.03,240.95,7.92262083]
[1733625232713,7.92262083,241.03,240.96,0.12549]
[1733625233083,11.9669,241.12,240.97,7.92262083]
[1733625233084,18.0767,241.12,240.97,7.92262083]
[1733625233281,20.0,241.09,240.97,7.92262083]
[1733625233487,7.92262083,241.04,240.97,7.92262083]
[1733625234097,7.92262083,241.04,240.96,0.12549]
[1733625235616,7.92262083,241.03,240.96,8.04811083]
[1733625235822,7.92262083,241.03,240.97,0.12549]
[1733625238826,7.92262083,241.02,240.96,0.12549]
[1733625241732,7.92262083,241.03,240.96,28.04811083]
[1733625242033,7.92262083,241.03,240.96,20.12549]
[1733625242213,7.92262083,241.03,240.96,28.04811083]
[1733625243226,7.92262083,241.03,240.96,8.04811083]
[1733625249214,7.92262083,241.01,240.94,12.05962083]
[1733625249814,7.92262083,241.01,240.95,0.12549]
[1733625250146,55.46736732,241.08,240.95,0.12549]
[1733625250147,7.92262083,241.02,240.96,20.0]
[1733625250433,7.92262083,241.03,240.96,20.0]
[1733625250647,7.92262083,241.03,240.96,27.92262083]
[1733625250941,7.92262083,241.04,240.97,8.04811083]
[1733625252233,18.0767,241.12,240.97,8.04811083]
[1733625252234,7.7082,241.12,241.0,7.92262083]
[1733625252441,7.7082,241.12,241.01,8.04811083]
[1733625252442,7.92262083,241.09,241.01,8.04811083]
[1733625253146,7.92262083,241.08,241.01,8.04811083]
[1733625253443,7.92262083,241.06,241.0,0.25098]
[1733625253826,7.92262083,241.05,240.99,0.12549]
[1733625254029,7.92262083,241.01,240.98,1.6033]
[1733625254616,7.92262083,241.01,240.96,0.12549]
[1733625255141,7.92262083,241.01,240.95,4.137]
[1733625255345,7.92262083,240.98,240.93,1.6033]
[1733625255550,7.92262083,240.96,240.88,1.62165204]
[1733625255841,7.92262083,240.96,240.89,4.137]
[1733625256818,7.92262083,240.97,240.9,24.137]
[1733625257017,23.776884,241.02,240.92,7.92262083]
[1733625257251,7.92262083,241.0,240.92,7.92262083]
[1733625257539,7.92262083,241.0,240.89,10.3779]
[1733625257540,7.92262083,241.0,240.93,7.92262083]
[1733625257747,7.92262083,241.0,240.92,27.92262083]
[1733625258325,23.776884,241.02,240.92,27.92262083]
[1733625258634,7.92262083,241.0,240.92,27.92262083]
[1733625258833,7.92262083,240.99,240.92,20.0]
[1733625259047,7.92262083,240.99,240.92,27.92262083]
[1733625259515,7.92262083,241.0,240.93,7.92262083]
[1733625260116,7.92262083,240.99,240.92,27.92262083]
[1733625261015,6.046,241.07,240.94,0.12549]
[1733625261016,7.92262083,241.0,240.94,0.12549]
[1733625261215,20.0,241.08,240.95,7.92262083]
[1733625261441,7.92262083,241.02,240.95,7.92262083]
[1733625262031,7.92262083,241.03,240.96,7.92262083]
[1733625264246,23.776884,241.07,240.97,0.12549]
[1733625264454,7.92262083,241.04,240.97,0.12549]
[1733625266352,7.92262083,241.02,240.96,1.6033]
[1733625267020,7.92262083,241.0,240.94,20.0]
[1733625267328,23.776884,241.07,240.94,20.0]
[1733625267329,7.92262083,240.98,240.94,20.0]
[1733625270434,7.92262083,240.97,240.9,5.7403]
[1733625270744,7.92262083,240.96,240.9,5.7403]
[1733625271822,7.92262083,240.97,240.9,13.66292083]
[1733625272023,7.92262083,240.98,240.91,7.92262083]
[1733625272247,7.92262083,240.99,240.91,7.92262083]
[1733625272745,7.92262083,240.99,240.93,0.12549]
[1733625273054,7.92262083,241.02,240.95,8.04811083]
[1733625273440,7.92262083,241.03,240.95,8.04811083]
[1733625273953,1.5984,241.12,240.97,7.92262083]
[1733625274131,7.92262083,241.05,240.97,7.92262083]
[1733625275844,20.7321,241.18,240.94,38.34509166]
[1733625275845,1.528,241.17,241.02,8.04811083]
[1733625276167,1.528,241.17,241.03,7.92262083]
[1733625276168,7.92262083,241.11,241.03,7.92262083]
[1733625277148,7.92262083,241.11,241.04,7.92262083]
[1733625277335,1.528,241.17,241.05,7.92262083]
[1733625277336,7.92262083,241.12,241.05,7.92262083]
[1733625277645,7.92262083,241.11,241.05,0.12549]
[1733625279345,6.338,241.19,241.05,0.37647]
[1733625279536,7.92262083,241.14,241.07,0.12549]
[1733625280332,7.92262083,241.12,241.06,0.25098]
[1733625280543,7.92262083,241.12,241.04,27.92262083]
[1733625280764,7.92262083,241.12,241.04,20.0]
[1733625280971,7.92262083,241.1,241.04,20.0]
[1733625281462,10.3629,241.25,241.09,7.92262083]
[1733625281642,7.92262083,241.19,241.11,7.92262083]
[1733625282043,7.92262083,241.21,241.13,7.92262083]
[1733625282237,36.69048332,241.32,241.15,7.92262083]
[1733625282441,7.92262083,241.24,241.16,1.77979]
[1733625287064,31.69048332,241.32,241.16,1.6543]
[1733625287065,7.92262083,241.22,241.16,1.6543]
[1733625289167,7.92262083,241.18,241.09,4.144]
[1733625289363,7.92262083,241.16,241.09,4.144]
[1733625289566,7.92262083,241.16,241.1,0.12549]
[1733625289950,7.92262083,241.15,241.08,16.21142083]
[1733625290747,7.92262083,241.12,241.08,1.6543]
[1733625291361,7.92262083,241.12,241.05,0.12549]
[1733625292967,31.69048332,241.2,241.04,4.144]
[1733625292968,7.92262083,241.09,241.04,4.144]
[1733625293162,7.92262083,241.08,241.02,1.6481]
[1733625295992,7.92262083,241.06,240.97,6.2355]
[1733625296272,7.92262083,241.04,240.97,6.2355]
[1733625296979,7.92262083,241.04,240.97,14.15812083]
[1733625297878,7.92262083,241.03,240.97,6.2355]
[1733625299770,1.5961,241.14,240.99,7.92262083]
[1733625300080,7.92262083,241.01,240.94,20.0]
[1733625300380,7.92262083,240.99,240.93,4.144]
[1733625300556,7.92262083,241.0,240.93,12.06662083]
[1733625300751,7.92262083,241.0,240.94,0.12549]
[1733625300957,7.92262083,241.02,240.94,0.12549]
[1733625301382,23.776884,241.07,240.9,4.144]
[1733625301582,23.776884,241.07,240.89,1.6021]
[1733625301583,7.92262083,241.0,240.93,12.06662083]
[1733625301874,7.92262083,241.0,240.94,0.12549]
[1733625302067,7.92262083,240.97,240.89,1.6021]
[1733625302270,7.92262083,240.97,240.9,7.92262083]
[1733625302472,7.92262083,240.97,240.91,7.92262083]
[1733625302672,7.92262083,241.01,240.94,0.12549]
[1733625302879,23.776884,241.07,240.94,0.12549]
[1733625303262,7.92262083,241.01,240.94,0.12549]
[1733625303785,23.776884,241.07,240.94,0.12549]
[1733625304089,7.92262083,240.99,240.93,0.25098]
[1733625304961,7.92262083,240.99,240.91,7.92262083]
[1733625305166,7.92262083,240.97,240.91,0.12549]
[1733625305366,7.92262083,240.97,240.9,7.92262083]
[1733625305761,7.92262083,240.96,240.9,20.25098]
[1733625305963,7.92262083,240.96,240.9,0.25098]
[1733625307488,7.92262083,240.98,240.9,28.17360083]
[1733625308455,7.92262083,240.99,240.9,30.50319]
[1733625308658,7.92262083,240.98,240.91,0.12549]
[1733625308861,7.92262083,240.97,240.9,30.3777]
[1733625309784,7.92262083,240.98,240.9,38.30032083]
[1733625310286,7.92262083,240.98,240.91,0.12549]
[1733625310489,7.92262083,241.0,240.92,7.92262083]
[1733625312384,10.3693,241.1,240.9,34.5217]
[1733625312385,10.3693,241.1,240.96,7.92262083]
[1733625312575,7.92262083,241.03,240.96,7.92262083]
[1733625314186,7.92262083,241.03,240.95,0.12549]
[1733625314360,7.92262083,241.02,240.95,0.12549]
[1733625314692,7.92262083,241.02,240.95,0.25098]
[1733625315192,10.3693,241.1,240.95,0.25098]
[1733625315385,7.92262083,241.02,240.95,0.25098]
[1733625319505,7.92262083,241.02,240.95,7.92262083]
[1733625320501,7.92262083,241.03,240.96,0.12549]
[1733625320706,7.92262083,241.04,240.97,7.92262083]
[1733625320907,7.92262083,241.05,240.98,7.92262083]
[1733625321080,7.92262083,241.04,240.97,7.92262083]
[1733625321484,7.92262083,241.04,240.96,8.04811083]
[1733625322903,7.92262083,241.04,240.96,0.12549]
[1733625323089,7.92262083,241.03,240.96,0.12549]
[1733625324405,7.92262083,241.05,240.97,7.92262083]
[1733625325002,8.1096,241.12,240.98,0.12549]
[1733625325202,1.5632,241.12,240.99,9.56642083]
[1733625325504,7.92262083,241.07,241.0,0.12549]
[1733625326311,6.0618,241.18,241.01,7.92262083]
[1733625326605,7.92262083,241.09,241.01,7.92262083]
[1733625327577,1.6069,241.17,241.02,0.12549]
[1733625327785,7.92262083,241.1,241.02,0.12549]
[1733625332519,7.92262083,241.1,241.02,4.26949]
[1733625335101,23.902374,241.16,241.02,4.26949]
[1733625335292,7.92262083,241.09,241.02,4.26949]
[1733625335711,1.6069,241.17,241.04,0.12549]
[1733625335899,7.92262083,241.12,241.04,0.12549]
[1733625337288,20.0,241.17,241.05,7.92262083]
[1733625337484,7.92262083,241.13,241.05,7.92262083]
[1733625338316,7.92262083,241.11,241.04,0.12549]
[1733625339216,23.902374,241.19,241.04,0.12549]
[1733625339217,7.92262083,241.09,241.04,0.12549]
[1733625339591,7.92262083,241.09,241.03,10.3721]
[1733625342812,7.92262083,241.11,241.03,18.29472083]
[1733625343619,7.92262083,241.13,241.05,7.92262083]
[1733625345813,0.12549,241.22,241.01,4.144]
[1733625345814,1.6585,241.23,241.07,7.92262083]
[1733625346007,7.92262083,241.16,241.09,7.92262083]
[1733625346708,7.92262083,241.18,241.09,7.92262083]
[1733625347211,15.3618,241.28,241.1,0.12549]
[1733625347530,7.92262083,241.19,241.12,0.12549]
[1733625348305,10.3618,241.28,241.12,0.12549]
[1733625348306,0.12549,241.27,241.12,0.12549]
[1733625348632,7.92262083,241.19,241.12,0.12549]
[1733625348813,7.92262083,241.17,241.09,10.3695]
[1733625349002,7.92262083,241.17,241.1,0.12549]
[1733625349836,7.92262083,241.17,241.09,18.29212083]
[1733625352037,7.92262083,241.11,241.08,1.5567]
[1733625352336,7.92262083,241.11,241.02,12.06662083]
[1733625354002,7.92262083,241.11,241.03,0.12549]
[1733625354504,7.92262083,241.11,241.04,20.0]
[1733625358334,0.12549,241.18,241.04,20.0]
[1733625358637,7.92262083,241.11,241.04,20.0]
[1733625361716,7.92262083,241.11,241.04,27.92262083]
[1733625364765,7.92262083,241.11,241.04,20.0]
[1733625365839,0.12549,241.18,241.0,7.8871]
[1733625365840,7.92262083,241.07,241.0,7.8871]
[1733625367440,7.92262083,241.05,241.0,7.8871]
[1733625368750,7.92262083,241.05,241.0,1.6234]
[1733625369542,23.902374,241.11,241.0,1.6234]
[1733625369715,7.92262083,241.05,241.0,1.6234]
[1733625370542,7.92262083,241.03,241.0,1.6234]
[1733625372518,7.92262083,241.05,241.01,4.144]
[1733625372712,0.12549,241.11,241.01,4.144]
[1733625372913,7.92262083,241.06,241.01,4.144]
[1733625373943,7.92262083,241.04,241.01,4.144]
[1733625374148,7.92262083,241.04,240.97,4.144]
[1733625374743,7.92262083,241.02,240.97,4.144]
[1733625374938,7.92262083,241.0,240.95,1.6653]
[1733625376424,31.69048332,241.08,240.95,1.6653]
[1733625376743,7.92262083,241.02,240.95,1.6653]
[1733625382052,7.92262083,241.04,240.96,7.92262083]
[1733625382640,7.92262083,241.04,240.95,1.6653]
[1733625382942,7.92262083,241.02,240.95,1.6653]
[1733625383757,31.69048332,241.08,240.95,1.6653]
[1733625383758,7.92262083,241.0,240.95,1.6653]
[1733625384842,7.92262083,240.98,240.95,1.6653]
[1733625385636,7.92262083,240.98,240.93,20.0]
[1733625387061,24.027864,241.07,240.93,20.0]
[1733625387245,7.92262083,240.98,240.93,20.0]
[1733625389146,7.92262083,240.96,240.9,8.1954]
[1733625389462,7.92262083,240.95,240.9,1.6653]
[1733625389651,7.92262083,240.94,240.9,1.6653]
[1733625392562,7.92262083,240.93,240.85,4.6163792]
[1733625392776,7.92262083,240.93,240.85,12.53900003]
[1733625393272,7.92262083,240.9,240.85,4.6163792]
[1733625393671,7.92262083,240.9,240.85,0.4723792]
[1733625401686,7.92262083,240.86,240.85,0.4723792]
[1733625402317,23.776884,240.96,240.85,0.4723792]
[1733625402454,7.92262083,240.93,240.85,8.39500003]
[1733625403056,0.12549,241.01,240.86,7.92262083]
[1733625403272,7.92262083,240.94,240.86,7.92262083]
[1733625403578,7.92262083,240.94,240.87,9.45862083]
[1733625403877,1.65674446,241.05,240.87,9.45862083]
[1733625404177,7.92262083,240.96,240.88,7.92262083]
[1733625404548,8.113,241.08,240.9,7.92262083]
[1733625404751,8.113,241.08,240.93,7.92262083]
[1733625404984,7.92262083,241.02,240.94,7.92262083]
[1733625407465,7.92262083,241.0,240.93,20.0]
[1733625407664,7.92262083,241.0,240.92,7.92262083]
[1733625409096,7.92262083,241.0,240.89,20.12549]
[1733625409097,23.776884,241.07,240.95,7.92262083]
[1733625409386,7.92262083,241.02,240.95,7.92262083]
[1733625409889,7.92262083,241.02,240.91,0.12549]
[1733625410058,7.92262083,241.02,240.94,0.12549]
[1733625412563,39.80348332,241.08,240.94,0.12549]
[1733625412890,7.92262083,241.02,240.94,0.12549]
[1733625414564,7.92262083,241.02,240.94,7.92262083]
[1733625414763,8.113,241.08,240.94,7.92262083]
[1733625414984,7.92262083,241.01,240.94,7.92262083]
[1733625415661,7.92262083,241.01,240.92,8.04811083]
[1733625415867,7.92262083,240.99,240.93,20.0]
[1733625416371,7.92262083,240.99,240.91,7.92262083]
[1733625417492,20.12549,241.07,240.91,7.92262083]
[1733625417677,7.92262083,241.02,240.94,0.12549]
[1733625422065,7.92262083,240.98,240.9,56.64541249]
[1733625422269,7.92262083,240.98,240.91,0.12549]
[1733625422989,7.92262083,240.96,240.88,46.26771249]
[1733625423198,7.92262083,240.96,240.89,4.144]
[1733625423365,0.12549,241.03,240.89,4.144]
[1733625423571,7.92262083,240.96,240.89,4.144]
[1733625424095,7.92262083,240.94,240.87,1.536]
[1733625424396,7.92262083,240.94,240.88,4.144]
[1733625426196,7.92262083,240.95,240.88,4.144]
[1733625426384,7.92262083,240.95,240.89,4.144]
[1733625427696,7.92262083,240.96,240.89,4.144]
[1733625428778,7.92262083,240.96,240.89,12.06662083]
[1733625429096,0.12549,241.05,240.91,7.92262083]
[1733625429307,7.92262083,240.98,240.9,18.42581083]
[1733625429475,7.92262083,240.97,240.9,10.50319]
[1733625429799,7.92262083,240.96,240.9,10.50319]
[1733625430177,7.92262083,240.97,240.9,10.50319]
[1733625430801,7.92262083,240.97,240.89,12.06662083]
[1733625430984,7.92262083,240.95,240.88,4.144]
[1733625432876,7.92262083,240.95,240.87,39.88109166]
[1733625433205,7.92262083,240.95,240.88,4.144]
[1733625436989,7.92262083,240.94,240.87,39.88109166]
[1733625437293,7.92262083,240.92,240.87,1.536]
[1733625437604,7.92262083,240.91,240.85,0.4723792]
[1733625438104,0.25098,241.0,240.85,0.4723792]
[1733625438305,20.0,241.04,240.86,7.92262083]
[1733625438480,7.92262083,240.95,240.87,7.92262083]
[1733625440502,7.92262083,240.93,240.86,0.12549]
[1733625440892,7.92262083,240.93,240.85,57.11979169]
[1733625441601,7.92262083,240.93,240.85,18.77470003]
[1733625442196,7.92262083,240.93,240.85,57.11979169]
[1733625442697,7.92262083,240.93,240.85,18.77470003]
[1733625444107,7.92262083,240.93,240.85,10.8520792]
[1733625445513,7.92262083,240.93,240.86,7.92262083]
[1733625447007,7.92262083,240.91,240.85,10.8520792]
[1733625450501,7.92262083,240.91,240.85,0.4723792]
[1733625455117,17.01177979,241.02,240.85,0.4723792]
[1733625455118,7.92262083,240.93,240.85,8.39500003]
[1733625455312,23.776884,240.97,240.85,8.39500003]
[1733625455517,7.92262083,240.94,240.85,8.39500003]
[1733625460015,7.92262083,240.93,240.85,8.39500003]
[1733625461932,23.776884,240.99,240.85,8.39500003]
[1733625462305,23.776884,240.99,240.87,7.92262083]
[1733625462508,0.12549,241.03,240.87,7.92262083]
[1733625462694,7.92262083,240.96,240.87,7.92262083]
[1733625465534,7.92262083,240.95,240.87,7.92262083]
[1733625469708,7.92262083,240.93,240.86,38.34509166]
[1733625470034,7.92262083,240.93,240.85,0.4723792]
[1733625470336,7.92262083,240.91,240.85,0.4723792]
[1733625476310,7.92262083,240.93,240.85,8.39500003]
[1733625476810,7.92262083,240.95,240.85,8.39500003]
[1733625477016,7.92262083,240.95,240.87,7.92262083]
[1733625478343,23.776884,240.97,240.87,7.92262083]
[1733625478639,7.92262083,240.94,240.87,7.92262083]
[1733625480435,7.92262083,240.94,240.85,46.74009169]
[1733625480822,7.92262083,240.94,240.85,8.39500003]
[1733625482527,7.92262083,240.92,240.85,0.4723792]
[1733625487948,7.92262083,240.95,240.87,7.92262083]
[1733625489149,1.5306,241.03,240.87,7.92262083]
[1733625489353,7.92262083,240.98,240.89,7.92262083]
[1733625489652,6.4701,241.05,240.93,27.92262083]
[1733625489830,7.92262083,241.0,240.93,27.92262083]
[1733625490340,6.4701,241.05,240.93,27.92262083]
[1733625490546,7.92262083,241.0,240.93,27.92262083]
[1733625493131,7.92262083,241.02,240.94,20.0]
[1733625493319,7.92262083,241.02,240.95,9.52272083]
[1733625495952,7.92262083,241.02,240.95,0.01596893]
[1733625501771,7.92262083,241.03,240.95,0.01596893]
[1733625504264,7.92262083,241.03,240.96,7.92262083]
[1733625504453,23.776884,241.07,240.96,7.92262083]
[1733625504454,23.776884,241.08,240.96,7.92262083]
[1733625504659,55.46736732,241.08,240.95,7.92262083]
[1733625504850,7.92262083,241.02,240.95,7.92262083]
[1733625506371,7.92262083,241.03,240.96,7.92262083]
[1733625506982,7.92262083,241.02,240.96,7.92262083]
[1733625508045,7.92262083,241.02,240.95,7.92262083]
[1733625508267,7.92262083,240.99,240.94,1.6001]
[1733625508473,7.92262083,240.98,240.94,21.6001]
[1733625510075,7.92262083,240.97,240.9,0.12549]
[1733625510247,7.92262083,240.97,240.9,8.04811083]
[1733625515382,7.92262083,240.97,240.88,7.9373]
[1733625515589,7.92262083,240.94,240.88,7.9373]
[1733625516886,7.92262083,240.93,240.88,1.5993]
[1733625517185,7.92262083,240.93,240.86,7.92262083]
[1733625517563,7.92262083,240.91,240.85,0.4723792]
[1733625518697,7.92262083,240.92,240.85,0.4723792]
[1733625519064,7.92262083,240.93,240.85,8.39500003]
[1733625521471,7.92262083,240.94,240.87,7.92262083]
[1733625522294,11.8735,241.01,240.87,7.92262083]
[1733625522295,7.92262083,240.96,240.87,7.92262083]
[1733625522590,7.92262083,240.96,240.89,7.92262083]
[1733625524892,7.92262083,240.96,240.87,7.92262083]
[1733625529200,1.5005,241.01,240.87,7.92262083]
[1733625529201,7.92262083,240.94,240.87,7.92262083]
[1733625532797,7.92262083,240.96,240.87,7.92262083]
[1733625534180,23.776884,241.0,240.87,7.92262083]
[1733625534372,7.92262083,240.96,240.87,7.92262083]
[1733625537298,7.92262083,240.96,240.89,7.92262083]
[1733625549906,7.92262083,240.96,240.88,10.3786]
[1733625550425,7.92262083,240.96,240.87,20.0]
[1733625550594,7.92262083,240.94,240.87,27.92262083]
[1733625550925,7.92262083,241.0,240.91,7.92262083]
[1733625551915,7.92262083,241.0,240.89,0.12549]
[1733625552124,7.92262083,241.0,240.91,7.92262083]
[1733625554503,7.92262083,240.98,240.88,20.12549]
[1733625554703,7.92262083,240.98,240.9,20.0]
[1733625555534,7.92262083,240.98,240.89,7.92262083]
[1733625556809,7.92262083,240.96,240.88,7.92262083]
[1733625557197,7.92262083,240.94,240.87,4.144]
[1733625559328,7.92262083,240.92,240.86,4.144]
[1733625559630,7.92262083,240.92,240.85,0.4723792]
[1733625560726,7.92262083,240.92,240.85,8.39500003]
[1733625561303,7.92262083,240.92,240.85,0.4723792]
[1733625562008,7.92262083,240.93,240.85,8.39500003]
[1733625564217,7.92262083,240.92,240.85,0.4723792]
[1733625565023,7.92262083,240.89,240.85,0.4723792]
[1733625565208,7.92262083,240.88,240.85,0.4723792]
[1733625567113,31.69048332,240.96,240.85,0.4723792]
[1733625567114,7.92262083,240.86,240.85,0.4723792]
[1733625570813,31.82499483,240.86,240.85,0.4723792]
[1733625571211,32.07597483,240.86,240.85,0.4723792]
[1733625573841,33.72027483,240.86,240.85,0.4723792]
[1733625575550,65.41075815,240.86,240.85,0.4723792]
[1733625575850,33.72027483,240.86,240.85,0.4723792]
[1733625578034,1.6443,240.86,240.85,0.4723792]
[1733625578229,7.92262083,240.86,240.85,0.4723792]
[1733625578430,7.92262083,240.87,240.85,0.4723792]
[1733625578648,7.92262083,240.88,240.85,0.4723792]
[1733625578842,1.6443,240.93,240.85,0.4723792]
[1733625579154,7.92262083,240.91,240.85,0.4723792]
[1733625579333,7.92262083,240.89,240.85,0.4723792]